[Event "44th Chess Olympiad Open 2022"]
[Site "Chennai"]
[Date "2022.07.29"]
[Round "1.26"]
[White "Vocaturo, Daniele"]
[Black "Gajadin, Dewperkash"]
[Result "1-0"]
[WhiteElo "2616"]
[BlackElo "1990"]
[Annotator "TA"]
[PlyCount "55"]
[EventDate "2022.??.??"]
[TimeControl "60"]

{[%evp 11,55,8,8,14,20,16,0,0,0,7,12,7,59,46,43,43,64,55,74,85,91,67,70,65,386,
377,419,418,461,464,770,777,878,856,853,825,866,897,868,881,932,920,1441,1398,
1578,1481]} 1. e4 {[%emt 0:00:12]} e5 {[%emt 0:00:02]} 2. Nf3 {[%emt 0:00:36]}
Nc6 {[%emt 0:00:06]} 3. Bc4 {[%emt 0:00:37]} Nf6 {[%emt 0:01:01]} 4. d3 {
[%emt 0:01:55]} Be7 {[%emt 0:01:23]} 5. O-O {[%emt 0:00:23]} O-O {[%emt 0:00:
00]} 6. Nc3 {[%emt 0:01:24]} d6 {[%emt 0:01:33]} 7. a4 {[%emt 0:11:02] 7.a3 is
the recent fashion. C55: Two Knights: 4 d3, 4 d4 exd4 5 e5 and Max Lange
Attack.} Be6 {[%emt 0:11:44]} 8. Nd5 {[%emt 0:00:00]} Bxd5 {[%emt 0:01:37]} 9.
exd5 {[%emt 0:00:00] The position is equal.} Nb4 {[%emt 0:02:53]} 10. d4 {
[%emt 0:06:08]} e4 {[%emt 0:11:53]} 11. Nd2 {[%emt 0:00:00][%cal Yf3d2,Yd2e4,
Ye4g3,Yg3f5,Yf5h6] [#]} Qd7 $146 {[%emt 0:07:24]} (11... c6 $11) ({Predecessor:
} 11... Nbxd5 12. Nxe4 c6 13. Ng3 g6 14. Re1 Re8 15. Qf3 Nb6 16. Bd3 d5 17. a5
Nbd7 {0-1 (29) Gabrielian,A (2464)-Sadhwani,R (2616) Chess.com INT 2022}) 12.
c3 $14 {[%emt 0:00:00]} Nbxd5 {[%emt 0:04:19] [#]} 13. Nxe4 $1 {[%emt 0:03:56]}
Rae8 {[%emt 0:05:12]} (13... c6 14. Ng3) 14. Ng3 {[%emt 0:00:00]} Nb6 {[%emt 0:
10:12]} 15. Bd3 {[%emt 0:00:00]} d5 {[%emt 0:00:57]} 16. Nf5 {[%emt 0:00:00]}
Bd8 {[%emt 0:08:40]} 17. Qf3 {[%emt 0:00:00][%cal Yc1h6] White is more active.}
Ne4 $2 {[%emt 0:03:19] This costs Black the game.} (17... Kh8 $1 $14) 18. a5
$18 {[%emt 0:00:00][%cal Ya4a5,Ya5b6,Yb6a7]} ({Not} 18. Qg4 g6 $16) 18... g6 {
[%emt 0:18:55]} 19. Nh6+ {[%emt 0:00:00]} Kg7 {[%emt 0:00:09]} 20. axb6 {
[%emt 0:00:00] White is clearly winning.} f5 {[%emt 0:00:34]} (20... axb6 $142
21. Ng4 h5) 21. bxa7 {[%emt 0:05:19]} Bg5 {[%emt 0:02:03]} 22. Bxg5 {[%emt 0:
00:00]} Nxg5 {[%emt 0:03:36] [#]} 23. Qg3 $1 {[%emt 0:00:00]} Ne4 {[%emt 0:03:
27]} (23... Kxh6 24. Qh4+) 24. Bxe4 {[%emt 0:00:00]} dxe4 {[%emt 0:00:25]} 25.
Qg5 {[%emt 0:00:00]} Ra8 {[%emt 0:00:00]} 26. Ra5 {[%emt 0:00:00][%cal Ya1a5,
Ya5e5,Ye5e7]} b6 {[%emt 0:00:00]} 27. Re5 {[%emt 0:00:00]} Rf6 {[%emt 0:00:20]
[#]} 28. Re7+ $3 {[%emt 0:00:00] Weighted Error Value: White=0.03 (flawless) /
Black=0.47} 1-0

[Event "44th Chess Olympiad Open 2022"]
[Site "Chennai"]
[Date "2022.07.29"]
[Round "1.26"]
[White "Sonis, Francesco"]
[Black "Sanches, Casanova Romario"]
[Result "1-0"]
[WhiteElo "2543"]
[BlackElo "2066"]
[Annotator "TA"]
[PlyCount "117"]
[EventDate "2022.??.??"]
[TimeControl "60"]

{[%evp 14,117,12,-3,22,30,29,31,51,42,31,52,35,37,45,44,134,137,125,110,122,
128,143,113,137,133,135,139,135,133,140,141,156,128,163,163,162,165,163,147,
188,179,186,147,172,174,181,185,179,172,198,191,225,204,253,229,225,216,255,
218,267,220,241,228,234,234,250,231,188,175,185,169,173,167,175,166,242,169,
168,148,209,228,185,166,328,287,346,342,387,367,753,747,1552,1533,1499,1437,
2266,2128,12829,6410,12821,6448,29975,29978,6531,6017]} 1. d4 {[%emt 0:00:03]}
Nf6 {[%emt 0:00:36]} 2. c4 {[%emt 0:00:09]} e6 {[%emt 0:00:24]} 3. Nf3 {
[%emt 0:00:11]} d5 {[%emt 0:00:28]} 4. g3 {[%emt 0:00:23]} Be7 {[%emt 0:00:57]}
5. Bg2 {[%emt 0:00:07]} O-O {[%emt 0:00:04]} 6. O-O {[%emt 0:00:25]} c6 {
[%emt 0:00:02]} 7. Nc3 {[%emt 0:02:52]} Nbd7 {[%emt 0:00:57]} 8. Nd2 {[%emt 0:
00:00]} e5 {[%emt 0:10:07] E07: Closed Catalan: Main Line (5 Nf3 0-0 6 0-0
Nbd7).} (8... b5 $5) 9. dxe5 {[%emt 0:01:37]} Nxe5 {[%emt 0:00:35]} 10. cxd5 {
[%emt 0:00:06]} cxd5 {[%emt 0:05:46] White is slightly better.} 11. Nb3 {
[%emt 0:00:15][%cal Rc3d5]} Be6 {[%emt 0:01:44]} 12. Nd4 {[%emt 0:05:20]} Nc6 {
[%emt 0:07:47]} 13. Nxe6 {[%emt 0:03:34]} fxe6 {[%emt 0:00:26]} 14. Bh3 {
[%emt 0:00:05] [#]} e5 $146 {[%emt 0:13:51] White stays focused until the end.}
({Better is} 14... Qd6 $14) ({Predecessor:} 14... Qd7 15. Bf4 Nh5 16. Bc1 Nf6
17. Qd3 Rae8 18. b3 Bc5 19. Bb2 Qf7 20. Qc2 Nd7 21. Kg2 Nb4 {1-0 (87) Bodrogi,
M (2063)-Toth Katona,T (1846) Hungary 2013}) 15. Be6+ $16 {[%emt 0:09:00]} Kh8
{[%emt 0:00:03]} 16. Bxd5 {[%emt 0:00:10]} ({Don't play} 16. Nxd5 Qd6 17. Nxe7
Qxe7 $14) 16... Nxd5 {[%emt 0:02:26]} 17. Qxd5 {[%emt 0:01:02]} ({But not} 17.
Nxd5 Bc5) 17... Qb6 {[%emt 0:05:30]} 18. Rb1 {[%emt 0:06:21]} Rad8 {[%emt 0:00:
00]} 19. Be3 {[%emt 0:00:23]} Rxd5 {[%emt 0:11:10]} 20. Bxb6 {[%emt 0:00:04]}
Rd7 {[%emt 0:00:09]} 21. Be3 {[%emt 0:00:05]} Nd4 {[%emt 0:03:57]} 22. Rfd1 {
[%emt 0:02:41]} Rfd8 {[%emt 0:00:00][%cal Yd4e2]} 23. Kf1 {[%emt 0:02:20]} a6 {
[%emt 0:00:01]} 24. Bxd4 {[%emt 0:01:25]} Rxd4 {[%emt 0:03:41]} 25. Rxd4 {
[%emt 0:01:50]} Rxd4 $18 {[%emt 0:00:50] Endgame KRB-KRN} 26. e3 {[%emt 0:05:
55]} Rd7 {[%emt 0:00:26]} 27. Ke2 {[%emt 0:00:44]} Kg8 {[%emt 0:00:00]} 28. Ne4
{[%emt 0:01:56]} Kf7 {[%emt 0:00:28]} 29. Rc1 {[%emt 0:00:11] Inhibits Rc7.} h6
{[%emt 0:01:57]} 30. Rc8 {[%emt 0:00:41]} Ke6 {[%emt 0:07:00]} 31. f3 {[%emt 0:
00:04]} Kf7 {[%emt 0:01:17]} 32. h4 {[%emt 0:00:16][%cal Yh2h4,Yh4h5]} Ke6 {
[%emt 0:00:43]} 33. h5 {[%emt 0:00:22]} Kf7 {[%emt 0:00:27]} 34. g4 {[%emt 0:
01:30]} Ke6 {[%emt 0:00:16]} 35. a3 {[%emt 0:00:00][%cal Ya2a3,Ya3a4]} Kf7 {
[%emt 0:00:37]} 36. Rc3 {[%emt 0:03:15]} Ke6 {[%emt 0:00:51]} 37. Rc2 {[%emt 0:
00:08]} Kf7 {[%emt 0:00:41]} 38. Rc4 {[%emt 0:02:03]} Ke6 {[%emt 0:03:29]} 39.
a4 {[%emt 0:00:16]} Kf7 {[%emt 0:00:00]} 40. b3 {[%emt 0:00:33]} Ke6 {[%emt 0:
00:35]} 41. Nc3 {[%emt 0:30:36]} Bg5 {[%emt 0:04:33]} 42. Nd1 {[%emt 0:02:30]}
Bf6 {[%emt 0:06:29]} 43. Nf2 {[%emt 0:00:00]} Be7 {[%emt 0:04:25]} 44. Nd3 {
[%emt 0:00:00]} Kf6 {[%emt 0:00:00]} (44... Bd6 {was called for.} 45. Nc5+ Bxc5
) 45. Kd2 {[%emt 0:00:00]} Bd6 {[%emt 0:01:34]} 46. Kc2 {[%emt 0:00:00]} Be7 {
[%emt 0:00:42]} (46... Ke6 $16 47. Kd2 Rf7) 47. Rc8 {[%emt 0:00:00]} Bd6 {
[%emt 0:00:37]} 48. Kc3 {[%emt 0:00:00]} Be7 $2 {[%emt 0:02:54]} (48... Kg5 {
is a better defense.} 49. Nc5 Bxc5 50. Rxc5 Kf6) 49. b4 {[%emt 0:00:00]} Bd6 {
[%emt 0:09:59]} 50. Kc4 {[%emt 0:00:00]} e4 {[%emt 0:02:00]} 51. fxe4 {[%emt 0:
00:00][%cal Yf3e4,Ye4e5,Ye5e6] [#] Hoping for e5+!} Kg5 $2 {[%emt 0:00:19]} (
51... Re7 52. Rf8+ Ke6) 52. e5 {[%emt 0:00:00]} Rc7+ {[%emt 0:01:25]} 53. Rxc7
{[%emt 0:00:00]} Bxc7 {[%emt 0:00:00] KB-KN} 54. e6 {[%emt 0:00:00] aiming for
e7.} Bd6 {[%emt 0:01:38]} 55. Nc5 {[%emt 0:00:00] [#] Ne4+ is the strong
threat.} Kxg4 {[%emt 0:01:17]} 56. Nxb7 {[%emt 0:00:00]} Be7 {[%emt 0:00:14]}
57. b5 {[%emt 0:00:00]} axb5+ {[%emt 0:03:29]} 58. Kxb5 {[%emt 0:00:00]} Kxh5 {
[%emt 0:01:25]} 59. a5 {[%emt 0:00:00] Weighted Error Value: White=0.09 
(flawless) /Black=0.37} 1-0

[Event "44th Chess Olympiad Open 2022"]
[Site "Chennai"]
[Date "2022.07.29"]
[Round "1.26"]
[White "Giasi, Viresh"]
[Black "Lodici, Lorenzo"]
[Result "0-1"]
[WhiteElo "2006"]
[BlackElo "2553"]
[Annotator "TA"]
[PlyCount "92"]
[EventDate "2022.??.??"]
[TimeControl "60"]

{[%evp 9,92,-23,-20,-34,-37,-33,-31,-72,-50,-76,-50,-48,-58,-92,-77,-107,-76,
-119,-66,-114,-116,-109,-88,-88,-90,-116,-96,-340,-141,-149,-122,-206,-214,
-212,-214,-276,-281,-291,-287,-322,-316,-304,-311,-324,-313,-325,-322,-382,
-368,-451,-350,-496,-503,-773,-750,-728,-562,-557,-542,-742,-742,-742,-742,
-734,-734,-734,-734,-895,-906,-903,-891,-885,-851,-824,-769,-1215,-1176,-1036,
-898,-1598,-1485,-1372,-1245,-5077,-4960]} 1. e4 {[%emt 0:00:30]} c5 {[%emt 0:
00:00]} 2. Nf3 {[%emt 0:00:06]} Nc6 {[%emt 0:01:09]} 3. Nc3 {[%emt 0:01:35]} g6
{[%emt 0:01:37]} 4. Rb1 {[%emt 0:02:57]} Bg7 {[%emt 0:00:50]} 5. Be2 {[%emt 0:
00:00] [#]} Nf6 $146 {[%emt 0:07:45]} ({Predecessor:} 5... e6 6. O-O Nge7 7.
Nb5 d6 8. c3 a6 9. Na3 O-O 10. d3 b5 11. Nc2 Qc7 12. Be3 {0-1 (42) De Macedo,L
(1776)-Chellappa,T (2034) Natal 2011}) 6. a3 {[%emt 0:00:30] B30: Sicilian: 2..
.Nc6 3 Bb5, lines without ...g6.} d5 {[%emt 0:00:30][%cal Yd7d5,Yd5d4]} 7. d3 {
[%emt 0:00:30]} d4 {[%emt 0:00:30]} 8. Na2 {[%emt 0:00:30] Black is slightly
better.} O-O {[%emt 0:00:30]} 9. Bd2 {[%emt 0:00:30]} b5 {[%emt 0:00:00]} 10.
O-O {[%emt 0:00:30]} e5 {[%emt 0:00:30]} 11. b3 {[%emt 0:54:33]} Qd6 12. Ne1 {
[%emt 0:00:00]} Nd7 {[%emt 0:08:50][%cal Yf6d7,Yd7c5,Yc5a4,Ya4c3]} 13. b4 {
[%emt 0:00:00]} a6 {[%emt 0:22:47]} ({Black should play} 13... Qe6 $17 14. c4
bxc4 15. dxc4 f5) 14. bxc5 {[%emt 0:00:00]} (14. c4 $15) 14... Nxc5 $17 {
[%emt 0:00:27]} ({Inferior is} 14... Qxc5 15. Nb4 $15) 15. Nb4 {[%emt 0:00:00]}
Na4 {[%emt 0:04:20]} 16. Nxc6 {[%emt 0:00:00]} Qxc6 {[%emt 0:00:00]} 17. Bb4 {
[%emt 0:00:00]} Re8 {[%emt 0:00:39]} 18. Qd2 $2 {[%emt 0:00:00] [#]} (18. Bg4
$17) 18... Be6 {[%emt 0:08:14]} (18... a5 $1 $19 {[%cal Ra5b4]} 19. Bxa5 {[#]}
Rxa5 $1 20. Qxa5 Nc3) 19. Bf3 {[%emt 0:00:00]} Rec8 {[%emt 0:00:00] 0x0.
0013b9c8bb24dp-1022s more active pieces. The white rooks are badly placed.} 20.
g3 {[%emt 0:00:00]} (20. Ra1 $17 {keeps fighting.}) 20... Nc3 $19 {[%emt 0:00:
00]} 21. Bxc3 {[%emt 0:00:00]} Qxc3 {[%emt 0:00:00]} ({Stronger than} 21...
dxc3 22. Qg5 $17) 22. Qxc3 {[%emt 0:00:00]} Rxc3 {[%emt 0:00:00]} 23. Ra1 {
[%emt 0:00:00]} a5 {[%emt 0:00:00][%cal Ya6a5,Ya5a4]} 24. Bg2 {[%emt 0:00:00]}
a4 {[%emt 0:00:00]} 25. f4 {[%emt 0:00:00]} f6 {[%emt 0:00:00]} 26. Rf2 {
[%emt 0:00:00]} Rac8 {[%emt 0:00:00]} 27. h4 {[%emt 0:19:22]} Bf8 {[%emt 0:03:
32]} 28. fxe5 {[%emt 0:00:00]} fxe5 {[%emt 0:00:03]} 29. Nf3 {[%emt 0:00:00]}
Bxa3 {[%emt 0:00:39]} 30. Rb1 {[%emt 0:00:00] Prevents Bb2.} (30. Ng5 {is a
better defense.} Re8 31. Nxe6 Rxe6 32. Bh3) 30... b4 {[%emt 0:00:56] Black is
clearly winning.} 31. Nxe5 {[%emt 0:00:00]} (31. Ng5 $142 Rxc2 32. Nxe6) 31...
Rxc2 {[%emt 0:01:53]} 32. Rf6 {[%emt 0:00:00]} Rc1+ {[%emt 0:02:59]} 33. Rxc1 {
[%emt 0:00:00]} Rxc1+ {[%emt 0:00:00]} 34. Kh2 {[%emt 0:00:00] [#]} b3 $1 {
[%emt 0:00:07] Strongly threatening ...b2.} 35. Rxe6 {[%emt 0:00:00]} b2 {
[%emt 0:00:04]} 36. Rb6 {[%emt 0:00:00]} b1=Q {[%emt 0:00:08]} 37. Rxb1 {
[%emt 0:00:00]} Rxb1 {[%emt 0:00:00] Endgame KRB-KBN} 38. Nc6 {[%emt 0:01:06]}
Bc5 {[%emt 0:00:12]} 39. e5 {[%emt 0:00:01]} a3 {[%emt 0:00:08] aiming for ...
Rb2.} 40. Kh3 {[%emt 0:00:16]} Rb2 {[%emt 0:00:27][%cal Yb2g2] And now ...
Rxg2! would win.} 41. Bd5+ {[%emt 0:30:02]} Kf8 {[%emt 0:30:06]} 42. Nd8 {
[%emt 0:00:09]} Bb6 {[%emt 0:00:07]} 43. Ne6+ {[%emt 0:00:11]} Ke8 {[%emt 0:00:
19] ...a2 is the strong threat.} 44. Ng5 {[%emt 0:00:27]} a2 {[%emt 0:00:08]}
45. Bxa2 {[%emt 0:00:00]} Rxa2 {[%emt 0:00:05]} 46. Nxh7 {[%emt 0:00:05]} Bd8 {
[%emt 0:00:07] Weighted Error Value: White=0.86/Black=0.24 (precise)} 0-1

[Event "44th Chess Olympiad Open 2022"]
[Site "Chennai"]
[Date "2022.07.29"]
[Round "1.26"]
[White "Kalidjo, Imaan"]
[Black "Brunello, Sabino"]
[Result "0-1"]
[WhiteElo "1819"]
[BlackElo "2520"]
[Annotator "TA"]
[PlyCount "91"]
[EventDate "2022.??.??"]
[TimeControl "60"]

{[%evp 21,91,0,0,0,0,0,16,6,0,0,24,21,13,-15,12,-6,-3,-11,0,-12,-9,-17,0,-26,
-39,-27,-10,-18,-18,-17,-14,-17,-16,-89,-89,-88,-92,-88,-91,-105,-96,-174,-167,
-168,-177,-194,-183,-380,-379,-379,-379,-497,-482,-467,-481,-479,-447,-397,
-451,-459,-475,-471,-474,-462,-458,-444,-410,-770,-770,-6450,-6127,-1281]} 1.
d4 {[%emt 0:00:06]} Nf6 {[%emt 0:00:07]} 2. c4 {[%emt 0:00:17]} e6 {[%emt 0:00:
00]} 3. Nf3 {[%emt 0:00:32]} b6 {[%emt 0:00:18]} 4. g3 {[%emt 0:01:08]} Ba6 {
[%emt 0:00:18]} 5. b3 {[%emt 0:01:36]} Bb7 {[%emt 0:00:36]} 6. Bg2 {[%emt 0:00:
00]} Bb4+ {[%emt 0:00:05]} 7. Bd2 {[%emt 0:01:06]} a5 {[%emt 0:00:09]} 8. O-O {
[%emt 0:03:04]} O-O {[%emt 0:00:09]} 9. a3 {[%emt 0:05:04]} Be7 {[%emt 0:00:08]
} 10. Nc3 {[%emt 0:01:39]} Ne4 {[%emt 0:03:55]} 11. Nxe4 {[%emt 0:05:01]} Bxe4
{[%emt 0:00:03]} 12. Ne5 {[%emt 0:03:17] E15: Queen's Indian: 4 g3 sidelines,
4 g3 Ba6 and 4 g3 Bb7 early deviations.} Bxg2 {[%emt 0:00:11]} 13. Kxg2 {
[%emt 0:00:02]} d6 {[%emt 0:02:38]} 14. Nf3 {[%emt 0:02:29] [#] The position
is equal.} Nd7 $146 {[%emt 0:01:33]} ({Predecessor:} 14... c5 15. Bc3 f5 16. d5
e5 17. Nd2 e4 18. e3 Nd7 19. f3 exf3+ 20. Qxf3 Bf6 {0-1 (53) Wu,D (1800)
-Dimitrov,V (2309) Veliko Gradiste 2019}) 15. Bc3 {[%emt 0:13:32]} f5 {[%emt 0:
00:00]} 16. Qd3 {[%emt 0:09:25]} Qe8 {[%emt 0:07:15]} 17. e4 {[%emt 0:10:42]}
Qh5 {[%emt 0:07:20]} 18. Rae1 {[%emt 0:06:18]} f4 {[%emt 0:06:26]} 19. h3 {
[%emt 0:18:19]} Qg6 {[%emt 0:15:01]} 20. Kh2 {[%emt 0:19:24]} fxg3+ {[%emt 0:
00:00]} 21. fxg3 {[%emt 0:02:36]} d5 {[%emt 0:18:55]} 22. cxd5 {[%emt 0:00:00]}
exd5 {[%emt 0:00:24]} 23. a4 $1 {[%emt 0:08:31]} dxe4 {[%emt 0:13:56]} ({
Don't do} 23... Bd6 24. Nh4 Qe6 25. e5 Rxf1 26. Rxf1 $16) 24. Qxe4 {[%emt 0:00:
00]} Qxe4 {[%emt 0:00:20]} 25. Rxe4 {[%emt 0:00:00]} Bd6 {[%emt 0:00:25]} 26.
Kg2 {[%emt 0:00:00]} Nf6 {[%emt 0:00:32]} 27. Re6 {[%emt 0:03:56] [#]} (27.
Ree1 $11) 27... Nh5 $1 $17 {[%emt 0:01:42] White is now going downhill.} 28.
Be1 {[%emt 0:00:00]} Rfe8 $36 {[%emt 0:00:21] Black is really pushing.} 29. d5
{[%emt 0:00:00]} Nf6 {[%emt 0:00:12]} 30. Nd4 {[%emt 0:00:00]} Nxd5 {[%emt 0:
00:09]} 31. Rxe8+ {[%emt 0:00:00]} (31. Rf2 $17) 31... Rxe8 $19 {[%emt 0:00:01]
} 32. Bf2 {[%emt 0:00:00]} Bc5 {[%emt 0:02:08]} 33. Nf5 {[%emt 0:00:00]} Re2 {
[%emt 0:02:06] Threatens to win with ...Rb2.} 34. Kg1 $2 {[%emt 0:00:00] [#]} (
34. Kf3 {was the only chance.} Rb2 35. Bxc5 bxc5 36. Ke4 Nf6+ 37. Kd3) 34...
Rxf2 {[%emt 0:00:46]} 35. Rxf2 {[%emt 0:00:00] Endgame KRN-KBN} g6 {[%emt 0:00:
42]} 36. Nh4 {[%emt 0:00:00]} Nc3 {[%emt 0:01:03]} 37. Kf1 {[%emt 0:00:00]}
Bxf2 {[%emt 0:00:04]} 38. Kxf2 {[%emt 0:00:00] KN-KN} Ne4+ {[%emt 0:00:07]} 39.
Ke3 {[%emt 0:00:00]} Nc5 {[%emt 0:02:22]} 40. Kd4 {[%emt 0:00:00]} Nxb3+ {
[%emt 0:00:05]} 41. Kc4 {[%emt 0:21:53]} Nc5 {[%emt 0:00:00]} 42. Kb5 {[%emt 0:
00:00]} Ne4 {[%emt 0:00:00]} 43. Kc6 {[%emt 0:00:00]} Nc3 {[%emt 0:00:07]} 44.
Kxc7 {[%emt 0:00:00]} (44. Nf3 $142 Nxa4 45. Nd4) 44... b5 {[%emt 0:01:50]} ({
Not} 44... Nxa4 $2 45. Nf3 $19) 45. axb5 {[%emt 0:00:00]} Nxb5+ {[%emt 0:00:02]
} 46. Kb6 {[%emt 0:00:00] Weighted Error Value: White=0.55/Black=0.04 
(flawless)} 0-1

[Event "44th Chess Olympiad Open 2022"]
[Site "Chennai"]
[Date "2022.07.29"]
[Round "1.27"]
[White "Thybo, Jesper Sondergaard"]
[Black "Al-Sulaiti, Ghanem"]
[Result "1-0"]
[WhiteElo "2520"]
[BlackElo "2183"]
[Annotator "TA"]
[PlyCount "97"]
[EventDate "2022.??.??"]
[TimeControl "60"]

{[%evp 9,97,14,14,27,31,36,20,21,30,0,0,0,0,0,10,10,21,13,19,24,45,25,70,50,41,
37,66,52,117,118,112,118,128,118,124,118,144,111,137,129,145,116,120,129,138,
131,143,129,143,139,159,175,195,156,227,205,293,296,292,271,420,427,663,650,
654,647,622,602,570,575,574,573,568,568,526,519,589,573,654,579,776,776,1161,
1114,2227,2007,2294,1814,6359,6238]} 1. e4 {[%emt 0:00:06]} c5 {[%emt 0:00:10]}
2. Nf3 {[%emt 0:00:18]} Nc6 {[%emt 0:00:08]} 3. Bb5 {[%emt 0:00:26]} g6 {
[%emt 0:00:07]} 4. Bxc6 {[%emt 0:00:34]} bxc6 {[%emt 0:00:10]} 5. d4 {[%emt 0:
00:00]} Bg7 {[%emt 0:10:31]} 6. dxc5 {[%emt 0:01:00] B31: Sicilian: 2...Nc6 3
Bb5 g6.} Qa5+ {[%emt 0:00:47]} 7. Nbd2 {[%emt 0:00:56]} Qxc5 {[%emt 0:14:04]}
8. O-O {[%emt 0:03:24] The position is equal.} Nh6 {[%emt 0:06:15]} 9. h3 {
[%emt 0:09:00][%cal Ye4e5]} f6 {[%emt 0:12:48] [#] Prevents e5.} 10. Re1 $146 {
[%emt 0:21:29]} ({Predecessor:} 10. a3 O-O 11. b4 Qh5 12. Re1 d6 13. Nf1 g5 14.
Ng3 Qe8 15. Nd4 e6 16. f4 {1-0 (38) Aryan,C (2592)-Brynell,S (2406) Fagernes
2022}) 10... Nf7 {[%emt 0:05:29]} 11. Nb3 {[%emt 0:03:11]} Qb6 {[%emt 0:00:13]}
12. c4 {[%emt 0:05:06]} O-O {[%emt 0:06:58]} 13. Be3 {[%emt 0:06:54] Inhibits
c5.} Qc7 {[%emt 0:00:23]} 14. c5 {[%emt 0:01:47]} Rb8 {[%emt 0:16:38]} 15. Qc2
{[%emt 0:02:09]} Re8 {[%emt 0:04:45]} 16. Rac1 {[%emt 0:03:13]} Ba6 {[%emt 0:
00:00]} 17. Red1 {[%emt 0:05:35]} Rbd8 {[%emt 0:04:18]} 18. Rd2 {[%emt 0:08:14]
} Bh6 {[%emt 0:00:28] Black is now going downhill.} (18... e6 $14) 19. Bxh6 $16
{[%emt 0:01:36]} Nxh6 {[%emt 0:03:38]} 20. Qc3 {[%emt 0:01:12]} Nf7 {[%emt 0:
00:00] Against e5} 21. Na5 {[%emt 0:04:58]} Kg7 {[%emt 0:00:00]} 22. b4 {
[%emt 0:00:42]} Bb7 {[%emt 0:00:00]} 23. Nd4 {[%emt 0:02:11]} Bc8 {[%emt 0:00:
00]} 24. Rcd1 {[%emt 0:00:59]} Qf4 {[%emt 0:01:42]} 25. Re1 {[%emt 0:06:01]}
Qc7 {[%emt 0:00:37]} 26. Qe3 {[%emt 0:02:33]} Rf8 {[%emt 0:01:12]} 27. Red1 {
[%emt 0:00:46] 0x0.002063fabc67dp-1022s more active pieces.} Rde8 {[%emt 0:00:
00]} 28. a4 {[%emt 0:01:02]} Rd8 {[%emt 0:01:35]} 29. Qc3 {[%emt 0:01:57]} Rde8
{[%emt 0:00:22]} 30. Nf3 {[%emt 0:00:43] Pair of Knights!} Kg8 {[%emt 0:01:12]}
31. Re1 {[%emt 0:00:44]} Kg7 {[%emt 0:02:12]} (31... Ba6 $16 32. e5 Nxe5) 32.
e5 $18 {[%emt 0:00:37]} Nxe5 {[%emt 0:00:09]} (32... Kg8 $142 33. exf6 exf6 34.
Rxe8 (34. Qxf6 Ne5 $16) 34... Rxe8 35. Qxf6 Re4) 33. Nxe5 {[%emt 0:00:49]} fxe5
{[%emt 0:00:05]} 34. Rxe5 {[%emt 0:00:57]} Rf6 {[%emt 0:00:37]} (34... Kg8 {
was worth a try.} 35. Nc4 Qb8) 35. Nc4 {[%emt 0:01:15]} e6 {[%emt 0:01:36]} (
35... Qd8 $142 36. b5 Kf7) 36. Nd6 {[%emt 0:00:40]} Ref8 {[%emt 0:00:25]} 37.
Ne4 {[%emt 0:00:43]} Kg8 {[%emt 0:00:37]} 38. Nxf6+ {[%emt 0:00:21]} Rxf6 {
[%emt 0:00:04]} 39. Re3 {[%emt 0:00:46]} Rf5 {[%emt 0:00:46]} 40. Rf3 {[%emt 0:
00:00]} Qe5 {[%emt 0:00:05]} 41. Qxe5 {[%emt 0:31:04]} Rxe5 {[%emt 0:30:08]
Endgame KRR-KRB} 42. Re3 {[%emt 0:00:24]} Rf5 {[%emt 0:00:15]} 43. g4 {[%emt 0:
02:09]} Rf4 {[%emt 0:00:10]} 44. b5 {[%emt 0:00:25]} cxb5 {[%emt 0:00:00]} 45.
axb5 {[%emt 0:00:00]} Rb4 {[%emt 0:00:00]} 46. c6 {[%emt 0:00:00]} d5 {[%emt 0:
00:00]} 47. Ra3 {[%emt 0:00:00]} Rxb5 {[%emt 0:00:00]} 48. Rxa7 {[%emt 0:00:00]
} Rc5 {[%emt 0:00:00]} 49. Rc7 {[%emt 0:00:00] Weighted Error Value: White=0.
05 (flawless) /Black=0.31} 1-0

[Event "44th Chess Olympiad Open 2022"]
[Site "Chennai"]
[Date "2022.07.29"]
[Round "1.27"]
[White "Haubro, Martin"]
[Black "Al-Homaid, Abdulla"]
[Result "1-0"]
[WhiteElo "2411"]
[BlackElo "1358"]
[Annotator "RC"]
[PlyCount "61"]
[EventDate "2022.??.??"]
[TimeControl "60"]

1. e4 {[%emt 0:00:03]} e5 {[%emt 0:00:10]} 2. Nf3 {[%emt 0:00:06]} Nc6 {
[%emt 0:00:13]} 3. Bb5 {[%emt 0:00:07]} a6 {[%emt 0:00:52]} 4. Ba4 {[%emt 0:00:
00]} Nf6 {[%emt 0:00:19]} 5. O-O {[%emt 0:00:10]} b5 {[%emt 0:00:34]} 6. Bb3 {
[%emt 0:00:06]} Bc5 {[%emt 0:00:30]} 7. a4 {[%emt 0:02:14]} Bb7 {[%emt 0:04:04]
} 8. d3 {[%emt 0:04:39]} d6 {[%emt 0:02:25]} 9. Nc3 {[%emt 0:03:17]} b4 {
[%emt 0:09:56]} 10. Ne2 h6 {[%emt 0:03:36]} 11. a5 {[%emt 0:13:07]} O-O {
[%emt 0:00:55]} 12. c3 {[%emt 0:03:44]} Ba7 {[%emt 0:14:42]} 13. Ng3 {[%emt 0:
00:00]} Bc8 {[%emt 0:00:06]} 14. h3 {[%emt 0:13:49]} Rb8 {[%emt 0:08:21]} 15.
Bc4 {[%emt 0:00:00]} Ne7 {[%emt 0:03:53]} 16. Qe2 {[%emt 0:04:23]} Ng6 {
[%emt 0:05:12]} 17. d4 {[%emt 0:06:23]} exd4 {[%emt 0:08:21]} 18. Nxd4 {
[%emt 0:01:20]} Bxd4 {[%emt 0:04:54]} 19. cxd4 {[%emt 0:00:06]} Re8 {[%emt 0:
00:00]} 20. Bd3 {[%emt 0:05:25]} c5 {[%emt 0:06:38]} 21. dxc5 {[%emt 0:05:49]}
dxc5 {[%emt 0:00:18]} 22. Be3 {[%emt 0:02:07]} Qd6 {[%emt 0:03:50]} 23. f4 {
[%emt 0:07:02]} Qc6 {[%emt 0:02:24]} 24. Rac1 {[%emt 0:01:43]} Nd7 {[%emt 0:00:
00]} 25. e5 {[%emt 0:01:29]} Ne7 {[%emt 0:03:57]} 26. Ne4 {[%emt 0:00:56]} Qa4
{[%emt 0:02:11]} 27. Nd6 {[%emt 0:03:17]} Rd8 {[%emt 0:01:16]} 28. Bc4 {
[%emt 0:00:19]} Rf8 {[%emt 0:01:31]} 29. Bxf7+ {[%emt 0:01:01]} Rxf7 {[%emt 0:
00:00]} 30. Qc4 {[%emt 0:00:18]} Qb5 {[%emt 0:03:15]} 31. Qxf7+ {[%emt 0:00:10]
} 1-0